fUST/lending_fUST_20250107
["ID","MTS","AMOUNT","RATE_DAILY","PERIOD"]
[347931898,1736219440857,-863.72,0.00019452,3]
[347931900,1736219440867,-500.0,0.00019452,3]
[347931902,1736219440877,-637.69,0.00019452,3]
[347931904,1736219440887,-688.59,0.00019452,3]
[347931906,1736219440896,-500.0,0.00019452,3]
[347931908,1736219440906,-2432.06,0.00019452,3]
[347931910,1736219440915,-500.0,0.00019452,3]
[347931912,1736219440926,-1076.65,0.00019452,3]
[347931914,1736219440935,-500.0,0.00019452,3]
[347931916,1736219440945,-500.0,0.00019452,3]
[347931918,1736219440954,-1360.16,0.00019452,3]
[347931920,1736219440964,-500.0,0.00019452,3]
[347931922,1736219440973,-500.0,0.00019452,3]
[347931924,1736219440984,-500.0,0.00019452,3]
[347931926,1736219440995,-500.0,0.00019452,3]
[347931928,1736219441008,-696.35,0.00019452,3]
[347931930,1736219441017,-18046.96,0.00019452,3]
[347931932,1736219441027,-1663.12,0.00019452,3]
[347931934,1736219441036,-815.53,0.00019452,3]
[347931936,1736219441046,-500.0,0.00019452,3]
[347931937,1736219441056,-513.74,0.00019452,3]
[347931939,1736219441065,-821.36,0.00019452,3]
[347931940,1736219441075,-708.73,0.00019452,3]
[347931942,1736219441085,-175.5620233,0.00019452,3]
[347931944,1736219441094,-500.0,0.00019452,3]
[347931946,1736219441103,-702.05,0.00019452,3]
[347931948,1736219441113,-500.0,0.00019452,3]
[347931950,1736219441123,-500.0,0.00019452,3]
[347931952,1736219441133,-500.0,0.00019452,3]
[347931954,1736219441143,-449.08375341,0.00019452,3]
[347931957,1736219441158,-350.13624659,0.00019452,3]
[347931959,1736219441167,-878.18,0.00019452,3]
[347931961,1736219441177,-595.71,0.00019452,3]
[347931962,1736219441186,-1048.62428271,0.00019452,3]
[347931963,1736219441198,-786.51571729,0.00019452,3]
[347931964,1736219441207,-2319.5,0.00019452,3]
[347931965,1736219441217,-527.76,0.00019452,2]
[347931966,1736219441226,-151.0,0.00019464,2]
[347931967,1736219441236,-151.0,0.00019464,2]
[347931968,1736219441245,-151.0,0.00019464,2]
[347931969,1736219441255,-500.0,0.00019473,2]
[347931970,1736219441265,-150.098,0.00019493,2]
[347931971,1736219441275,-150.0,0.00019493,2]
[347931972,1736219441284,-2081.0,0.00019493,2]
[347931973,1736219441293,-530.19693553,0.00019493,2]
[347931974,1736219441305,-4.80306447,0.00019493,2]
[347931975,1736219441316,-2319.0,0.00019493,2]
[347931976,1736219441325,-3750.80891234,0.0001959,2]
[347931977,1736219441335,-1232.33,0.000196,2]
[347931978,1736219441345,-151.721553,0.00019726,2]
[347931979,1736219441354,-151.0,0.00019726,2]
[347931980,1736219441364,-151.0,0.00019726,2]
[347931981,1736219441373,-164.418982,0.00019726,2]
[347931982,1736219441383,-164.418982,0.00019726,2]
[347931983,1736219441392,-164.418982,0.00019726,2]
[347931984,1736219441402,-164.418982,0.00019726,2]
[347931985,1736219441412,-151.0,0.00019726,2]
[347931986,1736219441421,-151.0,0.00019726,2]
[347931987,1736219441430,-190.98110894,0.00019726,3]
[347931988,1736219441439,-500.0,0.00019726,3]
[347931989,1736219441448,-4199.80251797,0.00019726,3]
[347931990,1736219441460,-407.23407593,0.00019726,3]
[347931991,1736219441886,-1249.9234061,0.00019726,3]
[347931992,1736219441897,-771.96,0.00019726,3]
[347931993,1736219441908,-500.0,0.00019726,3]
[347931994,1736219441918,-500.0,0.00019726,3]
[347931995,1736219441928,-531.53,0.00019726,3]
[347931996,1736219441938,-500.0,0.00019726,3]
[347931997,1736219441947,-565.51,0.00019726,3]
[347931998,1736219441957,-500.0,0.00019726,3]
[347931999,1736219441966,-500.0,0.00019726,3]
[347932000,1736219441975,-775.0,0.00019726,3]
[347932001,1736219441985,-500.0,0.00019726,3]
[347932002,1736219441995,-500.0,0.00019726,3]
[347932003,1736219442007,-754.0,0.00019726,3]
[347932004,1736219442017,-500.0,0.00019726,3]
[347932005,1736219442027,-861.05,0.00019726,3]
[347932006,1736219442036,-500.0,0.00019726,3]
[347932007,1736219442048,-500.0,0.00019726,3]
[347932008,1736219442057,-555.53,0.00019726,3]
[347932009,1736219442066,-500.0,0.00019726,3]
[347932010,1736219442076,-500.0,0.00019726,3]
[347932011,1736219442086,-590.33,0.00019726,3]
[347932012,1736219442096,-526.57354598,0.00019726,3]
[347932013,1736219442106,-500.0,0.00019726,3]
[347932014,1736219442115,-742.26,0.00019726,3]
[347932015,1736219442125,-500.0,0.00019726,3]
[347932016,1736219442134,-476.79693328,0.00019726,3]
[347932017,1736219442144,-656.56,0.00019726,3]
[347932018,1736219442154,-500.0,0.00019726,3]
[347932019,1736219442164,-500.0,0.00019726,3]
[347932020,1736219442173,-500.0,0.00019726,3]
[347932021,1736219442182,-3788.1,0.00019726,3]
[347932022,1736219442192,-2430.09,0.00019726,3]
[347932023,1736219442202,-500.0,0.00019726,3]
[347932024,1736219442211,-606.84,0.00019726,3]
[347932025,1736219442221,-500.0,0.00019726,3]
[347932026,1736219442229,-690.08,0.00019726,3]
[347932027,1736219442239,-1054.77659364,0.00019726,3]
[347932037,1736219444213,-500.0,0.00019178,2]
[347932038,1736219444223,-338.32731644,0.00019178,2]
[347932056,1736219446836,-1788.00268356,0.00019178,2]
[347932059,1736219446846,-603.82,0.00019178,2]
[347932061,1736219446856,-500.0,0.00019452,3]
[347932063,1736219446866,-2126.33,0.00019452,3]
[347932065,1736219446876,-603.82,0.00019452,3]
[347932067,1736219446886,-265.26526092,0.00019647,2]
[347932068,1736219446896,-38.87710606,0.00019726,3]
[347932083,1736220082916,191.175987,0.00013973,2]
[347932084,1736220149197,186.9,0.00025,120]
[347932085,1736220167987,1528.70528181,0.00025,120]
[347932100,1736220432283,-490.827,0.00017093,2]
[347932101,1736220432306,-490.827,0.00017266,2]
[347932102,1736220432329,-300.0,0.00017971,2]
[347932103,1736220432357,-24900.0,0.00017972,2]
[347932104,1736220432379,-227.266146,0.00018131,2]
[347932105,1736220432402,-198.94894569,0.0001899,2]
[347932106,1736220432429,-500.0,0.00018999,2]
[347932107,1736220432450,-97828.036001,0.00019,2]
[347932108,1736220432473,-456.656,0.0001909,2]
[347932109,1736220432495,-268.299,0.00019177,2]
[347932110,1736220432516,-500.0,0.00019178,2]
[347932111,1736220432539,-500.0,0.00019178,2]
[347932112,1736220432564,-500.0,0.00019178,2]
[347932113,1736220432587,-500.0,0.00019178,2]
[347932114,1736220432609,-500.0,0.00019178,2]
[347932115,1736220432632,-500.0,0.00019178,2]
[347932116,1736220432654,-584.55,0.00019178,2]
[347932117,1736220432675,-500.0,0.00019178,2]
[347932118,1736220432697,-500.0,0.00019178,2]
[347932119,1736220432719,-500.0,0.00019178,2]
[347932120,1736220432743,-2229.38,0.00019178,2]
[347932121,1736220432765,-500.0,0.00019178,2]
[347932122,1736220432787,-805.0,0.00019178,2]
[347932123,1736220432809,-500.0,0.00019178,2]
[347932124,1736220432831,-546.07,0.00019178,2]
[347932125,1736220432853,-500.0,0.00019178,2]
[347932126,1736220432875,-500.0,0.00019178,2]
[347932127,1736220432897,-269.30221503,0.00019178,2]
[347932128,1736220432919,-500.96320472,0.00019178,2]
[347932129,1736220433108,-1682.21,0.00019178,2]
[347932130,1736220433132,-500.0,0.00019178,2]
[347932131,1736220433156,-500.0,0.00019178,2]
[347932132,1736220433180,-753.42,0.00019178,2]
[347932133,1736220433207,-500.0,0.00019178,2]
[347932134,1736220433233,-678.13,0.00019178,2]
[347932135,1736220433261,-500.0,0.00019178,2]
[347932136,1736220433287,-659.75,0.00019178,2]
[347932137,1736220433311,-500.0,0.00019178,2]
[347932138,1736220433337,-500.0,0.00019178,2]
[347932139,1736220433361,-500.0,0.00019178,2]
[347932140,1736220433385,-3314.59,0.00019178,2]
[347932141,1736220433407,-500.0,0.00019178,2]
[347932142,1736220433433,-500.0,0.00019178,2]
[347932143,1736220433455,-500.0,0.00019178,2]
[347932144,1736220433479,-500.0,0.00019178,2]
[347932145,1736220433504,-500.0,0.00019178,2]
[347932146,1736220433527,-500.0,0.00019178,2]
[347932147,1736220433550,-516.54,0.00019178,2]
[347932148,1736220433575,-1280.18,0.00019178,2]
[347932149,1736220433599,-791.75,0.00019178,2]
[347932150,1736220433621,-500.0,0.00019178,2]
[347932151,1736220433645,-649.48,0.00019178,2]
[347932152,1736220433668,-631.21,0.00019178,2]
[347932153,1736220433692,-500.0,0.00019178,2]
[347932154,1736220433715,-500.0,0.00019178,2]
[347932155,1736220433739,-532.73151541,0.00019178,2]
[347932156,1736220433763,-5124.84,0.00019178,2]
[347932157,1736220433787,-986.93,0.00019178,2]
[347932158,1736220433809,-500.0,0.00019178,2]
[347932159,1736220433846,-500.0,0.00019178,2]
[347932160,1736220433882,-16543.04,0.00019178,2]
[347932161,1736220433920,-500.0,0.00019178,2]
[347932162,1736220433955,-638.32,0.00019178,2]
[347932163,1736220433989,-1524.53,0.00019178,2]
[347932164,1736220434024,-369.04017061,0.00019178,2]
[347932165,1736220434061,-747.56,0.00019178,2]
[347932166,1736220434098,-500.0,0.00019178,2]
[347932167,1736220434134,-649.67,0.00019178,2]
[347932168,1736220434168,-500.0,0.00019178,2]
[347932169,1736220434205,-752.91,0.00019178,2]
[347932170,1736220434241,-574.49,0.00019178,2]
[347932171,1736220434280,-675.46,0.00019178,2]
[347932172,1736220434319,-643.55,0.00019178,2]
[347932173,1736220434355,-500.0,0.00019178,2]
[347932174,1736220434391,-732.62,0.00019178,2]
[347932175,1736220434428,-843.52971784,0.00019178,2]
[347932189,1736220545161,-3715.27551568,0.00017,2]
[347932254,1736220632190,-110.91746531,0.00017,2]
[347932257,1736220632200,-302.90913937,0.00019,2]
[347932259,1736220632211,-300.0,0.00019177,2]
[347932261,1736220632221,-500.0,0.00019178,2]
[347932263,1736220632234,-500.0,0.00019178,2]
[347932265,1736220632243,-1949.14,0.00019178,2]
[347932267,1736220632253,-530.98,0.00019178,2]
[347932269,1736220632263,-553.5,0.00019178,2]
[347932271,1736220632273,-500.0,0.00019178,2]
[347932273,1736220632282,-500.0,0.00019178,2]
[347932275,1736220632291,-242.48671932,0.00019178,2]
[347932277,1736220632304,-257.51328068,0.00019178,2]
[347932279,1736220632313,-500.0,0.00019178,2]
[347932281,1736220632323,-500.0,0.00019178,2]
[347932283,1736220632333,-742.48671932,0.00019178,2]
[347932285,1736220632345,-484.35328068,0.00019178,2]
[347932287,1736220632355,-758.76,0.00019178,2]
[347932290,1736220632364,-560.19,0.00019178,2]
[347932292,1736220632373,-604.91,0.00019178,2]
[347932294,1736220632383,-500.0,0.00019178,2]
[347932296,1736220632392,-500.0,0.00019178,2]
[347932298,1736220632402,-945.81,0.00019178,2]
[347932300,1736220632411,-500.0,0.00019178,2]
[347932301,1736220632421,-500.0,0.00019178,2]
[347932303,1736220632430,-500.0,0.00019178,2]
[347932305,1736220632440,-4911.31,0.00019178,2]
[347932307,1736220632450,-1246.81,0.00019178,2]
[347932309,1736220632459,-15853.75,0.00019178,2]
[347932311,1736220632468,-500.0,0.00019178,2]
[347932313,1736220632477,-500.0,0.00019178,2]
[347932315,1736220632489,-500.0,0.00019178,2]
[347932317,1736220632499,-1088.56915765,0.00019178,2]
[347932320,1736220632511,-372.44084235,0.00019178,2]
[347932322,1736220632521,-90.79925765,0.00019178,2]
[347932324,1736220632532,-353.60750811,0.00019178,2]
[347932372,1736220637969,-167.32323424,0.00019178,2]
[347932373,1736220637979,-500.0,0.00019178,2]
[347932374,1736220637988,-716.42,0.00019178,2]
[347932375,1736220637997,-622.6,0.00019178,2]
[347932376,1736220638006,-721.54,0.00019178,2]
[347932377,1736220638015,-616.74,0.00019178,2]
[347932378,1736220638024,-500.0,0.00019178,2]
[347932379,1736220638033,-647.32,0.00019178,2]
[347932380,1736220638043,-500.0,0.00019178,2]
[347932381,1736220638052,-500.0,0.00019178,2]
[347932382,1736220638061,-771.46,0.00019178,2]
[347932383,1736220638071,-702.09,0.00019178,2]
[347932384,1736220638080,-523.32,0.00019178,2]
[347932385,1736220638089,-500.0,0.00019178,2]
[347932386,1736220638099,-2091.06,0.00019178,2]
[347932387,1736220638109,-154.02,0.00019178,2]
[347932388,1736220638118,-1999.99,0.0001923,7]
[347932389,1736220638127,-307.3333384,0.00019288,2]
[347932390,1736220638136,-214.6648392,0.00019288,2]
[347932391,1736220638145,-153.0,0.00019288,2]
[347932392,1736220638154,-214.6648391,0.00019288,2]
[347932393,1736220638163,-153.0,0.00019288,2]
[347932394,1736220638173,-213.956775,0.00019288,2]
[347932395,1736220638183,-3863.48216854,0.000193,2]
[347932396,1736220638192,-174.08032754,0.00019352,2]
[347932397,1736220638201,-499.0,0.00019451,2]
[347932398,1736220638211,-500.0,0.00019452,3]
[347932399,1736220638220,-401.2931669,0.00019452,3]
[347932400,1736220638229,-2229.38,0.00019452,3]
[347932401,1736220638239,-500.0,0.00019452,3]
[347932402,1736220638249,-500.0,0.00019452,3]
[347932403,1736220638258,-1682.21,0.00019452,3]
[347932404,1736220638267,-500.0,0.00019452,3]
[347932405,1736220638277,-500.0,0.00019452,3]
[347932406,1736220638286,-753.42,0.00019452,3]
[347932407,1736220638296,-500.0,0.00019452,3]
[347932408,1736220638305,-678.13,0.00019452,3]
[347932409,1736220638315,-500.0,0.00019452,3]
[347932410,1736220638324,-659.75,0.00019452,3]
[347932411,1736220638334,-500.0,0.00019452,3]
[347932412,1736220638343,-500.0,0.00019452,3]
[347932413,1736220638352,-500.0,0.00019452,3]
[347932414,1736220638362,-3314.59,0.00019452,3]
[347932415,1736220638371,-500.0,0.00019452,3]
[347932416,1736220638380,-500.0,0.00019452,3]
[347932417,1736220638390,-500.0,0.00019452,3]
[347932418,1736220638399,-500.0,0.00019452,3]
[347932419,1736220638408,-516.54,0.00019452,3]
[347932420,1736220638417,-500.0,0.00019452,3]
[347932421,1736220638426,-649.48,0.00019452,3]
[347932422,1736220638436,-500.0,0.00019452,3]
[347932423,1736220638445,-500.0,0.00019452,3]
[347932424,1736220638454,-574.49,0.00019452,3]
[347932425,1736220638463,-500.0,0.00019452,2]
[347932426,1736220638472,-277.87499714,0.00019452,3]
[347932427,1736220638484,-1949.14,0.00019452,3]
[347932428,1736220638493,-530.98,0.00019452,3]
[347932429,1736220638502,-553.5,0.00019452,3]
[347932430,1736220638512,-500.0,0.00019452,3]
[347932431,1736220638523,-500.0,0.00019452,3]
[347932432,1736220638532,-500.0,0.00019452,3]
[347932433,1736220638541,-500.0,0.00019452,3]
[347932434,1736220638550,-500.0,0.00019452,3]
[347932435,1736220638560,-1226.84,0.00019452,3]
[347932436,1736220638570,-758.76,0.00019452,3]
[347932437,1736220638579,-560.19,0.00019452,3]
[347932438,1736220638588,-604.91,0.00019452,3]
[347932439,1736220638598,-500.0,0.00019452,3]
[347932440,1736220638607,-500.0,0.00019452,3]
[347932441,1736220638616,-945.81,0.00019452,3]
[347932442,1736220638625,-500.0,0.00019452,3]
[347932443,1736220638635,-500.0,0.00019452,3]
[347932444,1736220638644,-500.0,0.00019452,3]
[347932445,1736220638653,-1246.81,0.00019452,3]
[347932446,1736220638663,-4911.31,0.00019452,3]
[347932447,1736220638672,-15853.75,0.00019452,3]
[347932448,1736220638682,-500.0,0.00019452,3]
[347932449,1736220638691,-500.0,0.00019452,3]
[347932450,1736220638700,-500.0,0.00019452,3]
[347932451,1736220638709,-1461.01,0.00019452,3]
[347932452,1736220638719,-611.73,0.00019452,3]
[347932453,1736220638728,-500.0,0.00019452,3]
[347932454,1736220638737,-716.42,0.00019452,3]
[347932455,1736220638747,-54.61631394,0.00019452,3]
[347932456,1736220638759,-567.98368606,0.00019452,3]
[347932457,1736220638768,-501.6851621,0.00019452,3]
[347932458,1736220638779,-219.8548379,0.00019452,3]
[347932459,1736220638788,-616.74,0.00019452,3]
[347932460,1736220638797,-500.0,0.00019452,3]
[347932461,1736220638807,-40.51434189,0.00019452,3]
[347932462,1736220638818,-606.80565811,0.00019452,3]
[347932463,1736220638827,-500.0,0.00019452,3]
[347932464,1736220638836,-397.2907992,0.00019452,3]
[347932465,1736220639490,-102.7092008,0.00019452,3]
[347932466,1736220639500,-771.46,0.00019452,3]
[347932467,1736220639510,-702.09,0.00019452,3]
[347932468,1736220639519,-523.32,0.00019452,3]
[347932469,1736220639529,-400.83303254,0.00019452,3]
[347932470,1736220639538,-2091.06,0.00019452,3]
[347932471,1736220639547,-535.0,0.00019455,2]
[347932472,1736220639557,-2081.0,0.00019455,2]
[347932473,1736220639567,-2319.0,0.00019455,2]
[347932474,1736220639576,-153.0,0.00019562,2]
[347932475,1736220639585,-153.0,0.00019562,2]
[347932476,1736220639595,-153.0,0.00019562,2]
[347932477,1736220639604,-153.0,0.000196,2]
[347932478,1736220639613,-153.0,0.000196,2]
[347932479,1736220639622,-1109.09,0.000197,2]
[347932480,1736220639631,-182.0,0.000197,6]
[347932481,1736220639640,-183.42162145,0.000197,2]
[347932482,1736220639649,-500.0,0.00019726,3]
[347932483,1736220639658,-2229.38,0.00019726,3]
[347932484,1736220639668,-500.0,0.00019726,3]
[347932485,1736220639678,-500.0,0.00019726,3]
[347932486,1736220639687,-500.0,0.00019726,3]
[347932487,1736220639696,-441.45473648,0.00019726,3]
[347932488,1736220639705,-1682.21,0.00019726,3]
[347932489,1736220639715,-753.42,0.00019726,3]
[347932490,1736220639724,-500.0,0.00019726,3]
[347932491,1736220639734,-678.13,0.00019726,3]
[347932492,1736220639744,-500.0,0.00019726,3]
[347932493,1736220639753,-659.75,0.00019726,3]
[347932494,1736220639762,-500.0,0.00019726,3]
[347932495,1736220639771,-500.0,0.00019726,3]
[347932496,1736220639781,-500.0,0.00019726,3]
[347932497,1736220639790,-3314.59,0.00019726,3]
[347932498,1736220639800,-500.0,0.00019726,3]
[347932499,1736220639810,-500.0,0.00019726,3]
[347932500,1736220639819,-500.0,0.00019726,3]
[347932501,1736220639828,-500.0,0.00019726,3]
[347932502,1736220639837,-516.54,0.00019726,3]
[347932503,1736220639847,-500.0,0.00019726,3]
[347932504,1736220639856,-649.48,0.00019726,3]
[347932505,1736220639865,-500.0,0.00019726,5]
[347932506,1736220639874,-500.0,0.00019726,3]
[347932507,1736220639883,-500.0,0.00019726,3]
[347932508,1736220639892,-574.49,0.00019726,3]
[347932509,1736220639902,-500.0,0.00019726,2]
[347932510,1736220639911,-1949.14,0.00019726,3]
[347932511,1736220639920,-196.22161505,0.00019726,3]
[347932517,1736220640352,-334.75838495,0.00019726,3]
[347932518,1736220640362,-553.5,0.00019726,3]
[347932519,1736220640372,-117.41618875,0.00019726,3]
[347932527,1736220642989,-500.0,0.00019178,2]
[347932528,1736220642998,-500.0,0.00019452,3]
[347932529,1736220643009,-382.58381125,0.00019726,3]
[347932530,1736220643018,-500.0,0.00019726,3]
[347932531,1736220643027,-500.0,0.00019726,3]
[347932532,1736220643037,-500.0,0.00019726,3]
[347932533,1736220643046,-500.0,0.00019726,3]
[347932534,1736220643055,-1226.84,0.00019726,3]
[347932535,1736220643064,-758.76,0.00019726,3]
[347932536,1736220643073,-560.19,0.00019726,3]
[347932537,1736220643211,-604.91,0.00019726,3]
[347932538,1736220643221,-500.0,0.00019726,3]
[347932539,1736220643231,-500.0,0.00019726,3]
[347932540,1736220643240,-945.81,0.00019726,3]
[347932541,1736220643249,-500.0,0.00019726,3]
[347932542,1736220643258,-500.0,0.00019726,3]
[347932543,1736220643267,-500.0,0.00019726,3]
[347932544,1736220643276,-1246.81,0.00019726,3]
[347932545,1736220643286,-4911.31,0.00019726,3]
[347932546,1736220643295,-2918.78618875,0.00019726,3]
[347932547,1736220643307,-12934.96381125,0.00019726,3]
[347932548,1736220643317,-500.0,0.00019726,3]
[347932549,1736220643327,-500.0,0.00019726,3]
[347932550,1736220643336,-500.0,0.00019726,3]
[347932551,1736220643346,-409.82992895,0.00019726,3]
[347932552,1736220643358,-1051.18007105,0.00019726,3]
[347932553,1736220643367,-611.73,0.00019726,3]
[347932554,1736220643376,-500.0,0.00019726,3]
[347932555,1736220643386,-716.42,0.00019726,3]
[347932556,1736220643395,-393.95222817,0.00019726,3]
[347932557,1736220643407,-228.64777183,0.00019726,3]
[347932558,1736220643416,-721.54,0.00019726,3]
[347932559,1736220643425,-616.74,0.00019726,3]
[347932560,1736220643436,-172.33838692,0.00019726,3]
[347932561,1736220643451,-327.66161308,0.00019726,3]
[347932562,1736220643461,-647.32,0.00019726,3]
[347932563,1736220643471,-500.0,0.00019726,3]
[347932564,1736220643481,-500.0,0.00019726,3]
[347932565,1736220643493,-771.46,0.00019726,3]
[347932566,1736220643502,-702.09,0.00019726,3]
[347932567,1736220643512,-523.32,0.00019726,3]
[347932568,1736220643521,-2091.06,0.00019726,3]
[347932569,1736220643531,-500.0,0.00019726,3]
[347932570,1736220643541,-426.0237683,0.00019837,2]
[347932571,1736220643550,-151.0,0.00019866,5]
[347932572,1736220643560,-174.08032747,0.00019881,2]
[347932573,1736220643570,-1724.91562277,0.000199,2]
[347932621,1736220646045,-500.0,0.00019178,2]
[347932623,1736220646056,-500.0,0.00019452,3]
[347932625,1736220646066,-2964.98321103,0.000199,2]
[347932627,1736220646075,-151.0,0.0002,2]
[347932629,1736220646084,-151.578051,0.0002,2]
[347932631,1736220646093,-10187.05850748,0.0002,2]
[347933030,1736220730702,1000.0,0.00025,120]
[347933031,1736221015347,198.886453,0.00013973,2]
[347933032,1736221115777,21460.41376786,0.00015001,2]
[347933046,1736221651154,-772.36871586,0.00016999,2]
[347933047,1736221651189,-3416.23265359,0.00017171,2]
[347933048,1736221651224,-300.0,0.00017804,2]
[347933049,1736221651257,-7402.4414676,0.00017805,2]
[347933050,1736221651291,-564.15401522,0.00017985,2]
[347933051,1736221651332,-22748.30801804,0.00018048,2]
[347933116,1736221832362,-2151.69198196,0.00018048,2]
[347933118,1736221832372,-399.891254,0.00018085,2]
[347933120,1736221832382,-776.35443343,0.00018696,2]
[347933123,1736221832393,-398.87657508,0.00018696,2]
[347933125,1736221832402,-985.24709152,0.000189,2]
[347933126,1736221832412,-163.98376503,0.00019078,2]
[347933128,1736221832421,-459.786,0.0001909,2]
[347933131,1736221832431,-202.07008274,0.00019166,2]
[347933133,1736221832441,-500.0,0.00019173,2]
[347933134,1736221832450,-300.0,0.00019176,2]
[347933136,1736221832459,-154.2,0.00019177,2]
[347933138,1736221832469,-296.833,0.00019177,2]
[347933140,1736221832478,-505.54025448,0.00019177,2]
[347933142,1736221832487,-500.0,0.00019177,2]
[347933144,1736221832497,-217.62198618,0.00019177,2]
[347933146,1736221832507,-501.06213942,0.00019178,2]
[347933148,1736221832516,-499.3283123,0.00019178,2]
[347933150,1736221832525,-500.0,0.00019178,2]
[347933152,1736221832535,-505.7079161,0.00019178,2]
[347933154,1736221832544,-503.5645356,0.00019178,2]
[347933156,1736221832554,-500.0,0.00019178,2]
[347933158,1736221832564,-500.0,0.00019178,2]
[347933160,1736221832573,-500.0,0.00019178,2]
[347933163,1736221832582,-505.91600309,0.00019178,2]
[347933166,1736221832592,-500.0,0.00019178,2]
[347933169,1736221832602,-252.07300638,0.00019178,2]
[347933172,1736221832611,-502.91367625,0.00019178,2]
[347933175,1736221832621,-502.91770502,0.00019178,2]
[347933178,1736221832632,-291.68831215,0.00019178,2]
[347933181,1736221832641,-504.56529049,0.00019178,2]
[347933184,1736221832651,-502.96095932,0.00019178,2]
[347933187,1736221832661,-503.85192987,0.00019178,2]
[347933190,1736221832670,-500.0,0.00019178,2]
[347933193,1736221832679,-504.10513418,0.00019178,2]
[347933196,1736221832688,-393.25578131,0.00019178,2]
[347933201,1736221832701,-224.60559709,0.00019178,2]
[347933203,1736221832711,-581.46489747,0.00019178,2]
[347933205,1736221832720,-500.0,0.00019178,2]
[347933207,1736221832729,-500.0,0.00019178,2]
[347933209,1736221832738,-505.40107053,0.00019178,2]
[347933211,1736221832748,-500.0,0.00019178,2]
[347933213,1736221832757,-501.94450593,0.00019178,2]
[347933214,1736221832766,-502.13930385,0.00019178,2]
[347933215,1736221832775,-500.0,0.00019178,2]
[347933216,1736221832786,-507.99972818,0.00019178,2]
[347933217,1736221832795,-500.0,0.00019178,2]
[347933218,1736221832804,-513.38509051,0.00019178,2]
[347933219,1736221832813,-500.0,0.00019178,2]
[347933220,1736221832822,-505.42199018,0.00019178,2]
[347933221,1736221832831,-500.0,0.00019178,2]
[347933222,1736221832840,-502.82124283,0.00019178,2]
[347933223,1736221832849,-500.0,0.00019178,2]
[347933224,1736221832859,-503.60488866,0.00019178,2]
[347933225,1736221832872,-522.38,0.00019178,2]
[347933226,1736221832882,-505.37924005,0.00019178,2]
[347933227,1736221832891,-500.0,0.00019178,2]
[347933228,1736221832900,-503.2611984,0.00019178,2]
[347933229,1736221832909,-503.18877404,0.00019178,2]
[347933230,1736221832918,-500.0,0.00019178,2]
[347933231,1736221832928,-501.64584284,0.00019178,2]
[347933232,1736221832937,-596.42,0.00019178,2]
[347933233,1736221832947,-502.80815148,0.00019178,2]
[347933234,1736221832956,-504.7267382,0.00019178,2]
[347933236,1736221832965,-500.0,0.00019178,2]
[347933238,1736221832974,-500.0,0.00019178,2]
[347933240,1736221832984,-594.21237973,0.00019178,2]
[347933242,1736221832994,-644.33826891,0.00019178,2]
[347933244,1736221833003,-500.0,0.00019178,2]
[347933246,1736221833013,-500.0,0.00019178,2]
[347933248,1736221833022,-500.0,0.00019178,2]
[347933250,1736221833032,-500.0,0.00019178,2]
[347933252,1736221833041,-502.52988229,0.00019178,2]